bitfinex-derivatives/quotes_SOLF0:USTF0_20250124
["timestamp","ask_amount","ask_price","bid_price","bid_amount"]
[1737733021395,1.2432,263.55,263.41,3.82319222]
[1737733021695,1.2432,263.55,263.41,0.02749222]
[1737733022094,3.7954,263.44,263.41,0.02749222]
[1737733022295,0.02461665,263.51,263.41,0.02749222]
[1737733022497,14.40654993,263.52,263.41,0.02749222]
[1737733022699,3.7955,263.43,263.41,0.02749222]
[1737733022897,14.40654993,263.47,263.27,1.2145]
[1737733023898,3.7966,263.36,263.28,3.7976]
[1737733024093,0.0271309,263.4,263.34,0.02444182]
[1737733024291,1.2371,263.41,263.11,1.2744]
[1737733024493,1.2371,263.41,263.11,2.5126]
[1737733024689,3.7975,263.29,263.11,2.5126]
[1737733025098,1.2371,263.41,263.11,2.5126]
[1737733025298,3.7971,263.32,263.11,2.5126]
[1737733025594,0.02680571,263.32,263.26,0.02463487]
[1737733026493,3.82390571,263.32,263.26,0.02463487]
[1737733026690,0.02680571,263.32,263.26,0.02463487]
[1737733027292,3.82400571,263.32,263.26,3.82253487]
[1737733027592,0.02680571,263.32,263.26,0.02463487]
[1737733028499,0.02680571,263.32,263.26,3.82253487]
[1737733029002,0.02680571,263.32,263.26,3.82243487]
[1737733029807,0.02680571,263.32,263.26,0.02463487]
[1737733030598,5.033,263.41,263.26,0.02463487]
[1737733031002,1.2371,263.41,263.26,0.02463487]
[1737733031706,0.02869457,263.36,263.26,0.02463487]
[1737733032402,3.7969,263.33,263.28,3.7975]
[1737733032606,0.02869457,263.36,263.28,3.7975]
[1737733033207,0.02869457,263.36,263.26,0.02463487]
[1737733033208,3.7973,263.31,263.26,0.02463487]
[1737733033505,0.02869457,263.36,263.26,0.02463487]
[1737733033699,1.24279457,263.36,263.26,0.02463487]
[1737733033903,3.7976,263.29,263.26,0.02463487]
[1737733034303,0.02915177,263.3,263.26,3.82253487]
[1737733034608,0.02915177,263.3,263.26,0.02463487]
[1737733038714,0.02915177,263.3,263.11,16.91914993]
[1737733039908,0.02915177,263.3,263.21,0.02694145]
[1737733040109,3.7977,263.28,263.21,3.82554145]
[1737733040314,0.02915177,263.3,263.21,3.82554145]
[1737733040515,0.02915177,263.3,263.21,0.02694145]
[1737733041211,0.02915177,263.3,263.25,3.7979]
[1737733041515,0.02915177,263.3,263.21,0.02694145]
[1737733042514,3.7977,263.28,263.21,0.02694145]
[1737733042711,1.2866,263.27,263.21,0.02694145]
[1737733042911,1.2866,263.27,263.21,3.82554145]
[1737733043215,1.2866,263.27,263.21,0.02694145]
[1737733043417,1.2866,263.27,263.1,14.40654993]
[1737733043816,3.7986,263.22,263.1,14.40654993]
[1737733044016,3.7986,263.22,263.16,3.7993]
[1737733044612,3.82332378,263.22,263.16,3.7993]
[1737733044818,0.02472378,263.22,263.17,0.44086991]
[1737733046118,3.799,263.19,263.17,0.44086991]
[1737733046712,0.02472378,263.22,263.17,0.44086991]
[1737733047820,3.7989,263.19,263.17,0.44086991]
[1737733048421,0.02472378,263.22,263.17,0.44086991]
[1737733049323,0.02472378,263.22,263.21,3.7986]
[1737733051024,0.02472378,263.22,263.17,0.44086991]
[1737733054428,0.02472378,263.22,263.21,3.7986]
[1737733055225,0.02472378,263.22,263.17,0.44086991]
[1737733055427,0.02472378,263.22,263.18,3.7991]
[1737733055726,0.02472378,263.22,263.17,0.44086991]
[1737733056825,9.03179488,263.22,263.04,9.0070711]
[1737733057024,9.0070711,263.18,263.03,1.2625]
[1737733057223,9.0070711,263.18,263.06,3.8008]
[1737733057425,9.0070711,263.14,263.0,9.0070711]
[1737733057621,9.0070711,263.14,263.04,3.801]
[1737733058029,9.0070711,263.14,263.06,0.02398939]
[1737733058329,9.0070711,263.1,262.95,1.2974]
[1737733059133,3.8006,263.08,263.01,3.8015]
[1737733059334,9.0070711,263.14,262.95,10.3044711]
[1737733059633,0.0261531,263.07,263.02,0.02439949]
[1737733059836,0.0261531,263.07,263.05,3.8009]
[1737733060735,0.00216371,263.07,263.05,3.8009]
[1737733061627,3.7991,263.18,263.12,3.7999]
[1737733061829,3.7991,263.18,263.02,0.02439949]
[1737733061830,5.094,263.21,263.02,1.32809949]
[1737733062030,1.2953,263.21,263.02,2.09981]
[1737733062229,1.2646,263.24,263.06,14.42609574]
[1737733062832,0.02707378,263.18,263.15,3.7994]
[1737733063038,0.02707378,263.18,263.12,0.02724417]
[1737733063430,0.02707378,263.18,263.16,3.7994]
[1737733066140,7.378e-05,263.18,263.16,3.7994]
[1737733066538,1.2056,263.34,263.16,14.42609574]
[1737733066737,1.2263,263.4,263.31,3.7972]
[1737733067142,1.2263,263.4,263.26,14.42609574]
[1737733067940,0.02575758,263.36,263.3,0.02655861]
[1737733068638,0.02575758,263.36,263.34,3.7967]
[1737733069240,0.02575758,263.36,263.31,3.7971]
[1737733069443,0.02575758,263.36,263.3,0.02655861]
[1737733071745,0.02575758,263.36,263.34,3.7968]
[1737733073039,5.758e-05,263.36,263.34,3.7968]
[1737733073743,14.42609574,263.57,263.35,2.4768]
[1737733073744,2.5438,263.57,263.35,2.4768]
[1737733074045,2.5438,263.57,263.37,14.42609574]
[1737733074838,0.02578541,263.5,263.44,0.02447503]
[1737733075436,3.7951,263.46,263.44,0.02447503]
[1737733077047,3.7955,263.43,263.31,1.2206]
[1737733077441,14.42609574,263.54,263.36,3.7963]
[1737733078142,0.02407053,263.48,263.42,0.02558783]
[1737733078349,1.34927053,263.48,263.42,0.02558783]
[1737733078538,1.34927053,263.48,263.28,71.1]
[1737733078738,1.3252,263.48,263.28,71.1]
[1737733078939,14.42609574,263.49,263.28,71.1]
[1737733079645,0.02705794,263.41,263.36,0.02851048]
[1737733079844,3.7961,263.39,263.36,0.02851048]
[1737733081844,3.7963,263.37,263.36,0.02851048]
[1737733082043,14.42609574,263.39,263.18,2.6209]
[1737733082250,14.42609574,263.34,263.11,14.42609574]
[1737733082548,3.7981,263.26,263.17,3.7992]
[1737733082751,3.7981,263.26,263.11,14.42609574]
[1737733083144,3.7981,263.26,263.22,0.02410767]
[1737733083948,0.02856258,263.28,263.22,0.02410767]
[1737733084548,0.02856258,263.28,263.23,3.7982]
[1737733086245,0.02856258,263.28,263.25,3.798]
[1737733086556,1.2179,263.39,263.22,0.02410767]
[1737733086850,1.2179,263.39,263.26,14.42609574]
[1737733087051,4.6102,263.48,263.26,14.42609574]
[1737733087253,1.3215,263.47,263.26,14.42609574]
[1737733087644,1.3215,263.47,263.23,1.2259]
[1737733087853,3.7968,263.34,263.3,0.02410232]
[1737733088047,0.02455794,263.36,263.3,0.02410232]
[1737733088449,0.02455794,263.36,263.31,3.7971]
[1737733088653,0.02455794,263.36,263.3,0.02410232]
[1737733089056,1.247,263.46,263.31,14.42609574]
[1737733089250,5.1165,263.47,263.31,14.42609574]
[1737733089552,14.42609574,263.55,263.43,3.7954]
[1737733089553,3.7947,263.49,263.43,3.7954]
[1737733089748,1.3215,263.54,263.31,14.42609574]
[1737733090353,0.02398242,263.45,263.4,0.02524088]
[1737733090652,3.7955,263.43,263.4,0.02524088]
[1737733091052,0.02398242,263.45,263.4,0.02524088]
[1737733091252,3.7955,263.43,263.4,0.02524088]
[1737733091453,0.02398242,263.45,263.4,0.02524088]
[1737733092152,0.02398242,263.45,263.43,3.7955]
[1737733092352,0.02398242,263.45,263.4,0.02524088]
[1737733093554,3.7953,263.44,263.4,0.02524088]
[1737733094351,0.02398242,263.45,263.4,0.02524088]
[1737733095047,0.02398242,263.45,263.44,3.7953]
[1737733095755,0.02398242,263.45,263.4,0.02524088]
[1737733095947,0.02398242,263.45,263.25,14.42609574]
[1737733096149,14.42609574,263.44,263.16,2.5314]
[1737733096452,14.42609574,263.39,263.16,2.5314]
[1737733096652,1.3098,263.38,263.16,2.5314]
[1737733096855,3.7973,263.31,263.22,3.7984]
[1737733097153,0.02396424,263.29,263.24,0.02620732]
[1737733098059,3.7979,263.26,263.24,0.02620732]
[1737733098353,0.02396424,263.29,263.07,85.50609574]
[1737733098556,14.42609574,263.34,263.07,85.50609574]
[1737733098759,14.42609574,263.29,263.07,85.50609574]
[1737733098958,4.5944,263.28,263.07,71.08]
[1737733099153,14.42609574,263.24,263.02,14.42609574]
[1737733099555,3.7996,263.15,263.1,0.02876823]
[1737733099755,0.02587163,263.16,263.1,0.02876823]
[1737733100954,0.02587163,263.16,263.14,3.7995]
[1737733101660,0.02587163,263.16,263.1,0.02876823]
[1737733101857,0.02587163,263.16,263.1,3.82886823]
[1737733102161,0.02587163,263.16,263.1,0.02876823]
[1737733102961,0.02587163,263.16,263.13,3.7997]
[1737733103161,0.02587163,263.16,263.1,0.02876823]
[1737733103760,0.02587163,263.16,263.14,3.7996]
[1737733105358,1.247,263.27,263.24,3.7982]
[1737733106462,0.02451624,263.28,263.23,0.02871406]
[1737733106663,1.2961,263.37,263.16,14.42609574]
[1737733106866,0.02661773,263.28,263.23,0.02773802]
[1737733107064,0.02661773,263.28,263.27,3.7978]
[1737733107765,1.773e-05,263.28,263.27,3.7978]
[1737733109164,1.773e-05,263.28,263.23,0.02773802]
[1737733109963,1.773e-05,263.28,263.26,3.7979]
[1737733111166,1.773e-05,263.28,263.23,0.02773802]
[1737733112062,1.773e-05,263.28,263.26,3.7978]
[1737733113367,2.51,263.44,263.27,17.02769574]
[1737733113671,1.2961,263.44,263.27,17.02769574]
[1737733114170,1.2961,263.44,263.4,3.7959]
[1737733114671,1.2961,263.44,263.39,0.02453941]
[1737733114971,1.2961,263.44,263.27,17.02769574]
[1737733115167,0.02775853,263.44,263.39,0.02458021]
[1737733115372,0.0261356,263.44,263.39,0.02752762]
[1737733115874,3.56e-05,263.44,263.42,3.7956]
[1737733117574,3.56e-05,263.44,263.4,3.7958]
[1737733117874,3.56e-05,263.44,263.39,0.02752762]
[1737733118075,3.56e-05,263.44,263.39,14.45362336]
[1737733118266,3.56e-05,263.44,263.42,3.7956]
[1737733122572,3.7934,263.58,263.53,3.794]
[1737733122777,3.7936,263.56,263.4,2.4283]
[1737733123383,1.2272,263.62,263.4,2.4283]
[1737733123583,1.2272,263.62,263.56,3.7935]
[1737733123779,1.2272,263.62,263.44,14.42609574]
[1737733123976,1.2272,263.62,263.56,0.02669467]
[1737733124177,1.2272,263.62,263.58,3.7932]
[1737733124382,1.2272,263.62,263.56,0.02770993]
[1737733124581,0.02423727,263.56,263.44,14.42609574]
[1737733124883,0.02423727,263.56,263.26,6.47832597]
[1737733124884,3.32,263.59,263.33,14.42609574]
[1737733125084,0.02579628,263.53,263.34,1.2486]
[1737733125381,1.317,263.58,263.38,14.42609574]
[1737733126079,0.02585617,263.51,263.45,0.02504539]
[1737733126387,0.02585617,263.51,263.49,3.7946]
[1737733126582,1.2091,263.61,263.45,0.02793521]
[1737733126782,0.0281761,263.5,263.43,14.42609574]
[1737733127079,1.2091,263.61,263.52,3.794]
[1737733127285,14.42609574,263.7,263.44,0.02891577]
[1737733127484,0.0248312,263.59,263.43,14.42609574]
[1737733127684,0.0248312,263.59,263.53,0.02783042]
[1737733127882,0.02576237,263.54,263.53,0.02783042]
[1737733128182,14.42609574,263.65,263.53,0.02783042]
[1737733128680,0.02896231,263.62,263.53,0.02783042]
[1737733129078,3.7936,263.56,263.53,0.02783042]
[1737733130082,3.7935,263.57,263.53,0.02783042]
[1737733130388,0.02896231,263.62,263.53,0.02783042]
[1737733130584,3.7933,263.58,263.53,0.02783042]
[1737733130786,0.02896231,263.62,263.53,0.02783042]
[1737733131686,0.02896231,263.62,263.55,3.7936]
[1737733131887,0.02896231,263.62,263.53,14.45392616]
[1737733132087,7.5785,263.87,263.53,14.45392616]
[1737733132388,0.75823634,263.77,263.58,14.42609574]
[1737733132590,14.42609574,263.77,263.53,14.42609574]
[1737733132891,14.42609574,263.72,263.53,14.42609574]
[1737733133087,14.42609574,263.72,263.49,1.2559]
[1737733133292,14.42609574,263.67,263.43,14.42609574]
[1737733133493,0.02409046,263.65,263.43,14.42609574]
[1737733133689,3.7684,263.66,263.43,14.42609574]
[1737733133890,14.42609574,263.62,263.38,14.42609574]
[1737733134683,0.02834888,263.55,263.49,0.02909048]
[1737733134887,0.02834888,263.55,263.49,3.82369048]
[1737733135089,0.02834888,263.55,263.48,14.42609574]
[1737733135393,0.02834888,263.55,263.49,0.0282479]
[1737733135593,0.02834888,263.55,263.53,3.794]
[1737733136193,0.02834888,263.55,263.49,0.0282479]
[1737733136993,0.02834888,263.55,263.5,3.7943]
[1737733137194,0.02834888,263.55,263.49,0.0282479]
[1737733137598,0.02834888,263.55,263.5,3.7943]
[1737733137792,0.02834888,263.55,263.49,0.0282479]
[1737733138399,0.02834888,263.55,263.5,3.7943]
[1737733138594,0.02834888,263.55,263.49,0.0282479]
[1737733138899,0.02834888,263.55,263.53,3.7939]
[1737733139598,4.888e-05,263.55,263.53,18.21999574]
[1737733139901,1.2305,263.71,263.53,14.42609574]
[1737733140098,1.3163,263.74,263.53,14.42609574]
[1737733140300,1.3163,263.74,263.64,3.7923]
[1737733140597,1.3163,263.74,263.53,14.42609574]
[1737733140900,1.2065,263.8,263.53,14.42609574]
[1737733141101,0.02815722,263.66,263.61,0.02779821]
[1737733141300,3.7913,263.72,263.65,3.7922]
[1737733141498,0.02452039,263.66,263.61,0.02443707]
[1737733141695,1.3163,263.79,263.58,14.42609574]
[1737733141899,0.02835067,263.66,263.62,3.7927]
[1737733142094,3.7906,263.77,263.58,14.42609574]
[1737733142403,0.0257574,263.67,263.61,0.02892377]
[1737733142604,3.7912,263.73,263.66,3.7921]
[1737733142804,0.02531919,263.67,263.61,0.02885336]
[1737733142999,3.7923,263.66,263.58,3.7932]
[1737733143203,2.5282,263.65,263.61,0.02506259]
[1737733143400,2.5282,263.65,263.48,14.42609574]
[1737733143603,1.2444,263.64,263.6,0.02607777]
[1737733143804,0.02463225,263.6,263.48,14.42609574]
[1737733143999,0.02463225,263.6,263.59,0.02917446]
[1737733144204,0.02463225,263.6,263.48,14.42609574]
[1737733144506,0.02463225,263.6,263.57,0.02551704]
[1737733144804,0.02463225,263.6,263.58,3.7932]
[1737733145703,0.02463225,263.6,263.56,0.02421631]
[1737733146205,0.02463225,263.6,263.38,14.42609574]
[1737733146503,14.42609574,263.52,263.28,1.2963]
[1737733146703,3.7955,263.44,263.35,3.7965]
[1737733146904,1.2356,263.51,263.3,14.42609574]
[1737733147102,1.2297,263.5,263.3,14.42609574]
[1737733147508,0.02881712,263.43,263.41,3.7957]
[1737733148508,0.02881712,263.43,263.39,0.02791992]
[1737733148905,0.02881712,263.43,263.19,155.24584818]
[1737733149103,14.42609574,263.41,263.19,155.24584818]
[1737733149504,3.7969,263.33,263.24,3.7981]
[1737733149904,14.42609574,263.41,263.17,1.2413]
[1737733150112,0.02848052,263.31,263.26,0.02788893]
[1737733150310,0.02848052,263.31,263.26,3.82568893]
[1737733151005,3.7974,263.3,263.26,0.02788893]
[1737733151214,0.02848052,263.31,263.1,14.42609574]
[1737733151614,1.259,263.34,263.1,14.42609574]
[1737733151912,23.41943172,263.28,263.11,3.8]
[1737733152113,23.41943172,263.23,263.08,155.24584818]
[1737733152413,3.7991,263.18,263.1,3.8001]
[1737733152708,2.5005,263.17,263.08,155.24584818]
[1737733152913,3.7994,263.16,263.08,155.24584818]
[1737733153112,2.5005,263.17,263.08,155.24584818]
[1737733153508,2.5005,263.17,263.04,23.41943172]
[1737733153705,0.0268332,263.15,263.04,23.41943172]
[1737733153912,0.0268332,263.15,262.99,23.41943172]
[1737733154310,2.5005,263.17,262.99,23.41943172]
[1737733154615,0.02602305,263.1,262.99,23.41943172]
[1737733154913,0.02602305,263.1,263.09,3.8002]
[1737733155417,0.02602305,263.1,262.99,23.41943172]
[1737733155612,0.02602305,263.1,262.94,23.41943172]
[1737733155915,3.8011,263.04,262.81,1.2644]
[1737733156112,0.02423317,263.05,262.81,1.2644]
[1737733156617,0.02796767,262.98,262.91,23.41943172]
[1737733156914,3.32,263.12,262.91,23.41943172]
[1737733157111,3.8003,263.1,263.0,3.8016]
[1737733157414,3.32,263.12,262.86,23.41943172]
[1737733157614,0.02774876,263.08,262.86,23.41943172]
[1737733157816,3.32,263.12,262.86,23.41943172]
[1737733158011,0.02479225,263.0,262.91,23.41943172]
[1737733158407,0.02479225,263.0,262.99,3.8018]
[1737733164220,9.225e-05,263.0,262.99,3.8018]
[1737733167622,9.225e-05,263.0,262.97,0.02640761]
[1737733168123,3.8018,262.99,262.97,0.02640761]
[1737733169023,9.225e-05,263.0,262.97,0.02640761]
[1737733169626,9.225e-05,263.0,262.98,3.8019]
[1737733172820,9.225e-05,263.0,262.97,0.02640761]
[1737733173421,9.225e-05,263.0,262.98,3.8019]
[1737733173829,9.225e-05,263.0,262.97,0.02640761]
[1737733174031,9.225e-05,263.0,262.97,3.82850761]
[1737733174231,9.225e-05,263.0,262.97,0.02640761]
[1737733174526,3.803,262.91,262.8,14.43230729]
[1737733174732,3.803,262.91,262.84,3.804]
[1737733174933,2.5244,262.99,262.8,14.43230729]
[1737733175628,0.02601116,262.92,262.8,14.43230729]
[1737733176633,0.02601116,262.92,262.86,3.8037]
[1737733176832,0.02601116,262.92,262.8,14.43230729]
[1737733177531,0.02601116,262.92,262.85,14.43230729]
[1737733177734,0.02601116,262.92,262.9,3.803]
[1737733178734,0.02601116,262.92,262.87,3.8035]
[1737733179637,0.02601116,262.92,262.88,3.8034]
[1737733179935,0.02601116,262.92,262.78,5.88269914]
[1737733181434,3.803,262.91,262.82,3.8042]
[1737733181634,0.02601116,262.92,262.78,5.88269914]
[1737733182533,0.02601116,262.92,262.82,3.8042]
[1737733182733,0.02601116,262.92,262.78,5.88269914]
[1737733183233,0.02601116,262.92,262.9,3.803]
[1737733185437,0.02601116,262.92,262.83,14.43230729]
[1737733185639,0.02601116,262.92,262.91,3.803]
[1737733185933,0.02601116,262.92,262.83,14.43230729]
[1737733188740,0.02601116,262.92,262.78,20.31500643]
[1737733189040,3.803,262.91,262.85,3.8038]
[1737733189235,0.02601116,262.92,262.78,20.31500643]
[1737733189436,0.02601116,262.92,262.83,14.43230729]
[1737733189640,0.02601116,262.92,262.91,3.803]
[1737733189840,14.43230729,263.07,262.84,3.8234]
[1737733190242,1.2062,263.08,262.88,14.43230729]
[1737733190447,14.43230729,263.02,262.84,3.8234]
[1737733190641,3.8027,262.93,262.84,3.8234]
[1737733190938,1.2211,263.01,262.86,0.02603383]
[1737733191142,3.8031,262.9,262.84,3.8038]
[1737733191642,3.8033,262.89,262.84,0.02771258]
[1737733191841,3.8033,262.89,262.78,20.31500643]
[1737733192142,0.02460847,262.9,262.84,0.02826224]
[1737733192344,0.02460847,262.9,262.89,3.8033]
[1737733193543,14.43230729,263.07,262.85,1.2174]
[1737733193844,3.8011,263.04,262.88,14.43230729]
[1737733194044,14.43230729,263.12,262.99,3.8018]
[1737733194239,1.2107,263.11,262.89,1.2886]
[1737733194441,3.8009,263.06,262.89,1.2886]
[1737733194637,0.02875168,263.01,262.96,0.02876465]
[1737733195145,0.02875168,263.01,262.99,3.8018]
[1737733195442,1.3267,263.18,262.98,14.43230729]
[1737733195641,1.3267,263.18,263.1,3.8001]
[1737733196046,1.3267,263.18,262.98,14.43230729]
[1737733196243,3.7994,263.17,263.04,3.8011]
[1737733196442,1.3267,263.18,262.98,14.43230729]
[1737733196646,0.02413619,263.13,263.08,0.02443414]
[1737733197042,3.82393619,263.13,263.08,0.02443414]
[1737733197250,7.61726957,263.33,263.11,14.43230729]
[1737733197547,7.61726957,263.33,263.12,1.2534]
[1737733197847,3.7984,263.23,263.13,3.7997]
[1737733198344,0.02810677,263.21,263.15,0.02450584]
[1737733198548,3.7988,263.21,263.12,1.2534]
[1737733198742,0.02723697,263.21,263.15,0.0245824]
[1737733199049,14.43230729,263.23,263.0,3.8016]
[1737733199245,0.02880641,263.21,262.99,2.5823]
[1737733199446,3.7715,263.22,262.99,2.5823]
[1737733200147,14.43230729,263.18,262.99,2.5823]
[1737733200347,0.02684317,263.13,263.08,0.0286926]
[1737733200949,0.02684317,263.13,262.98,71.18]
[1737733200950,14.45915046,263.13,262.9,156.51304818]
[1737733201249,14.43230729,263.13,262.9,156.51304818]
[1737733201449,14.43230729,263.08,262.9,156.51304818]
[1737733201644,3.9233,263.07,262.9,155.24584818]
[1737733202150,0.02431951,263.01,262.96,0.02562928]
[1737733202348,3.8025,262.95,262.9,155.24584818]
[1737733202551,0.02431951,263.01,262.9,155.24584818]
[1737733202746,14.43230729,263.03,262.9,155.24584818]
[1737733202949,3.803,262.91,262.84,1.2672]
[1737733203150,14.43230729,263.03,262.79,2.572]
[1737733203448,0.02621006,262.88,262.82,0.02428192]
[1737733203652,14.43230729,263.03,262.79,2.572]
[1737733203852,0.0245354,262.88,262.82,0.02739212]
[1737733204048,3.8027,262.93,262.79,2.572]
[1737733204254,0.02647958,262.88,262.82,0.0285837]
[1737733204653,14.43230729,263.03,262.79,2.572]
[1737733204853,0.02490319,262.88,262.82,0.02575637]
[1737733205053,3.803,262.91,262.81,3.8044]
[1737733205254,0.02803115,262.88,262.82,0.0285837]
[1737733205452,14.43230729,262.87,262.63,1.2537]
[1737733205650,3.8046,262.81,262.71,3.8058]
[1737733206151,1.3144,262.9,262.63,1.2537]
[1737733206350,1.3144,262.9,262.71,14.43230729]
[1737733206553,0.02416111,262.83,262.71,14.43230729]
[1737733207153,0.02416111,262.83,262.66,14.43230729]
[1737733207354,0.02416111,262.83,262.61,2.5172]
[1737733207656,0.02416111,262.83,262.61,26.02158421]
[1737733207955,3.8046,262.8,262.61,26.02158421]
[1737733208158,0.02652646,262.75,262.61,26.02158421]
[1737733209856,0.02652646,262.75,262.71,3.8058]
[1737733210155,0.02652646,262.75,262.66,23.50438421]
[1737733210556,0.02652646,262.75,262.71,3.8058]
[1737733210755,0.02652646,262.75,262.61,26.02158421]
[1737733210955,0.02652646,262.75,262.69,3.8061]
[1737733211153,0.02652646,262.75,262.61,26.02158421]
[1737733211357,0.02652646,262.75,262.66,23.50438421]
[1737733211764,0.02652646,262.75,262.61,26.02158421]
[1737733212056,23.50438421,262.74,262.59,3.8076]
[1737733212261,2.6073,262.73,262.59,3.8076]
[1737733212458,0.02473644,262.69,262.51,178.75023239]
[1737733212662,3.8063,262.68,262.51,178.75023239]
[1737733212861,0.02803392,262.63,262.51,178.75023239]
[1737733213065,3.8074,262.61,262.52,3.8086]
[1737733213357,0.02803392,262.63,262.51,155.24584818]
[1737733213557,1.2887,262.6,262.51,155.24584818]
[1737733213757,3.8078,262.58,262.51,155.24584818]
[1737733214163,1.2887,262.6,262.5,3.8088]
[1737733214164,0.02856781,262.57,262.5,3.8088]
[1737733214463,3.8081,262.56,262.37,1.2535]
[1737733214861,0.02584992,262.49,262.37,1.2535]
[1737733215063,0.02584992,262.49,262.39,23.50438421]
[1737733215764,0.02584992,262.49,262.36,155.24584818]
[1737733216256,0.02584992,262.49,262.44,3.8097]
[1737733216957,0.02584992,262.49,262.47,3.8093]
[1737733217263,2.6097,262.59,262.39,23.50438421]
[1737733217565,0.0257748,262.51,262.34,23.50438421]
[1737733217764,23.50438421,262.54,262.32,1.3273]
[1737733218059,0.0240152,262.45,262.32,1.3273]
[1737733218258,0.0240152,262.45,262.31,71.2]
[1737733218459,23.50438421,262.39,262.16,23.50438421]
[1737733218666,23.50438421,262.39,262.17,2.6675]
[1737733218861,27.31868421,262.44,262.21,23.50438421]
[1737733219158,5.812e-05,262.3,262.29,3.812]
[1737733219361,23.50438421,262.44,262.21,23.50438421]
[1737733219562,23.50438421,262.49,262.21,23.50438421]
[1737733219758,23.50438421,262.49,262.26,23.50438421]
[1737733220160,0.0243416,262.4,262.35,0.02748677]
[1737733222569,0.0243416,262.4,262.38,3.8106]
[1737733222763,0.0243416,262.4,262.35,0.02748677]
[1737733222764,23.50438421,262.54,262.35,0.02748677]
[1737733222970,23.50438421,262.6,262.35,23.50438421]
[1737733223168,23.50438421,262.55,262.36,1.2516]
[1737733223664,3.8091,262.49,262.39,3.8104]
[1737733223970,0.02586918,262.47,262.41,0.02431061]
[1737733225165,0.02586918,262.47,262.45,3.8096]
[1737733225865,6.918e-05,262.47,262.45,3.8096]
[1737733226271,3.4,262.7,262.46,24.84558421]
[1737733226469,3.4,262.7,262.51,23.50438421]
[1737733226671,3.7841,262.72,262.52,1.2494]
[1737733226871,3.8064,262.68,262.52,1.2494]
[1737733227473,3.8064,262.68,262.57,0.02490435]
[1737733227474,0.02426017,262.63,262.57,0.02490435]
[1737733229874,3.83136017,262.63,262.57,0.02490435]
[1737733230778,0.02426017,262.63,262.57,0.02490435]
[1737733231375,2.5739,262.77,262.57,0.02490435]
[1737733231576,6.379,262.77,262.67,3.8064]
[1737733231874,14.46427762,262.9,262.66,14.46427762]
[1737733232068,3.8032,262.9,262.71,14.46427762]
[1737733232269,14.46427762,262.95,262.71,14.46427762]
[1737733232475,14.46427762,262.88,262.6,14.46427762]
[1737733232772,0.02400885,262.86,262.65,14.46427762]
[1737733233079,14.46427762,262.88,262.65,14.46427762]
[1737733233281,14.46427762,262.88,262.61,1.3337]
[1737733233581,1.2391,262.94,262.55,14.46427762]
[1737733233582,14.46427762,262.77,262.55,14.46427762]
[1737733233781,1.2391,262.76,262.53,24.85226038]
[1737733234078,0.02581288,262.69,262.63,0.02818791]
[1737733235675,3.8063,262.68,262.63,0.02818791]
[1737733235873,0.02581288,262.69,262.63,0.02818791]
[1737733236480,1.288e-05,262.69,262.68,3.8063]
[1737733236681,1.288e-05,262.69,262.68,27.32486038]
[1737733236885,2.5183,262.96,262.68,23.51856038]
[1737733237074,2.5183,262.96,262.69,2.5346]
[1737733237275,23.51856038,262.92,262.69,2.5346]
[1737733237475,2.5183,262.96,262.73,23.51856038]
[1737733237676,23.51856038,263.03,262.78,23.51856038]
[1737733237984,3.8016,263.01,262.92,3.8027]
[1737733238180,3.8173,263.06,262.92,3.8027]
[1737733238379,3.8173,263.06,262.84,2.5274]
[1737733239087,23.51856038,263.03,262.84,2.5274]
[1737733239380,0.02468289,262.98,262.92,0.02437413]
[1737733239584,3.8025,262.95,262.92,0.02437413]
[1737733239780,0.02468289,262.98,262.92,0.02437413]
[1737733239979,3.82678289,262.98,262.92,0.02437413]
[1737733240175,0.02468289,262.98,262.92,0.02437413]
[1737733240984,3.82668289,262.98,262.92,0.02437413]
[1737733241184,0.02468289,262.98,262.92,0.02437413]
[1737733243882,23.51856038,263.18,262.93,23.51856038]
[1737733244084,23.51856038,263.18,262.98,23.51856038]
[1737733244287,2.5983,263.23,263.03,3.8012]
[1737733244487,2.5983,263.23,262.98,23.51856038]
[1737733244787,2.5983,263.23,262.99,1.275]
[1737733245081,23.51856038,263.16,262.99,1.275]
[1737733245284,0.02478098,263.14,262.94,1.2119]
[1737733245479,3.8013,263.03,262.94,5.0144]
[1737733245684,23.51856038,263.16,262.87,1.275]
[1737733245880,23.51856038,263.11,262.87,1.275]
[1737733246080,3.8009,263.06,262.87,1.275]
[1737733246285,23.51856038,263.16,262.93,23.51856038]
[1737733246579,3.8009,263.06,263.0,3.8017]
[1737733246886,23.51856038,263.16,262.94,1.3036]